Cogmind - Beta 12 @@@ ROGUE MODE // 2023.03.26 @ 02:43:49 Player: Rainynight Result: Destroyed by S-27 Virus with Autogun Performance ------------- Evolutions (4) 2000 Regions Visited (10) 2000 Robots Destroyed (0) 0 Value Destroyed (0) 0 Prototype IDs (0) 0 Alien Tech Used (0) 0 Bonus (-5256) -5256 TOTAL SCORE: -1256 Bonus ------- Devolution -15000 Fragile Parts 750 No Salvage 750 Pure Core 1500 Scavenger 3000 Simple Hacker 1319 Trapped 500 Pacifist 1125 Entered DSFs 500 Aligned with FarCom 300 Cogmind --------- Core Integrity 0/800 Matter 294/300 Energy 98/100 System Corruption 9% Temperature Cool (0) Movement Core (50) Location -6/Factory Parts ------- > --- POWER (2) -------- (None) > --- PROPULSION (4) --- (None) > --- UTILITY (5) ------ (None) > --- WEAPON (5) ------- (None) > --- INVENTORY (0) ---- (None) Peak State ------------ None Favorites ----------- Power None Propulsion None Utility None Weapon None Build | -11 -10 -10 -10 -9 -8 -7 -7 -6 -6 -6 ------- Run | Jun Mat Min Exi Min Mat Fac DSF Fac Was Fac Slots Evolved -4 | . . . . . -2 -1 . -1 . . Power . | . . . . . . . . . . . Propulsion -1 | . . . . . . -1 . . . . Utility -2 | . . . . . -1 . . -1 . . Weapon -1 | . . . . . -1 . . . . . Parts Attached . | . . . . . . . . . . . Power . | . . . . . . . . . . . Engine . | . . . . . . . . . . . Core . | . . . . . . . . . . . Reactor . | . . . . . . . . . . . Propulsion . | . . . . . . . . . . . Treads . | . . . . . . . . . . . Leg . | . . . . . . . . . . . Wheel . | . . . . . . . . . . . Hover . | . . . . . . . . . . . Flight . | . . . . . . . . . . . Utility . | . . . . . . . . . . . Device . | . . . . . . . . . . . Storage . | . . . . . . . . . . . Processor . | . . . . . . . . . . . Hackware . | . . . . . . . . . . . Protection . | . . . . . . . . . . . Artifact . | . . . . . . . . . . . Weapon . | . . . . . . . . . . . Energy Gun . | . . . . . . . . . . . Energy Cannon . | . . . . . . . . . . . Ballistic Gun . | . . . . . . . . . . . Ballistic Cannon . | . . . . . . . . . . . Launcher . | . . . . . . . . . . . Special Weapon . | . . . . . . . . . . . Impact Weapon . | . . . . . . . . . . . Slashing Weapon . | . . . . . . . . . . . Piercing Weapon . | . . . . . . . . . . . Special Melee Weapon . | . . . . . . . . . . . Unidentified Prototypes . | . . . . . . . . . . . Parts Lost . | . . . . . . . . . . . Power . | . . . . . . . . . . . Propulsion . | . . . . . . . . . . . Utility . | . . . . . . . . . . . Weapon . | . . . . . . . . . . . Highest Loss Streak . | . . . . . . . . . . . To Critical Strikes . | . . . . . . . . . . . Average Slot Usage (%) . | . . . . . . . . . . . Naked Turns 721 | . 13 35 82 141 54 14 56 162 43 121 Heaviest Build . | . . . . . . . . . . . Greatest Support 3 | 3 3 3 3 3 3 3 3 3 3 3 Greatest Overweight (x) . | . . . . . . . . . . . Average Overweight (x) . | . . . . . . . . . . . Largest Inventory Capacity . | . . . . . . . . . . . Average Capacity . | . . . . . . . . . . . Most Carried . | . . . . . . . . . . . Average Carried . | . . . . . . . . . . . Final Capacity . | . . . . . . . . . . . Final Carried . | . . . . . . . . . . . Class Distribution -------------------- 100% | Mutant Dominant Class ---------------- Mutant | -10/Materials Mutant | -10/Mines Mutant | -10/Exiles Mutant | -9/Mines Mutant | -8/Materials Mutant | -7/Factory Mutant | -7/DSF Mutant | -6/Factory Mutant | -6/Waste Mutant | -6/Factory Resources | -11 -10 -10 -10 -9 -8 -7 -7 -6 -6 -6 ----------- Run | Jun Mat Min Exi Min Mat Fac DSF Fac Was Fac Matter Collected 144 | 62 . . . 82 . . . . . . Remotely . | . . . . . . . . . . . Salvage Created . | . . . . . . . . . . . Parts . | . . . . . . . . . . . Haulers Intercepted . | . . . . . . . . . . . Recyclers Shooed . | . . . . . . . . . . . Parts Field Recycled . | . . . . . . . . . . . Retrieved Matter . | . . . . . . . . . . . Parts Self-Destructed . | . . . . . . . . . . . Prevented . | . . . . . . . . . . . Kills | -11 -10 -10 -10 -9 -8 -7 -7 -6 -6 -6 ------- Run | Jun Mat Min Exi Min Mat Fac DSF Fac Was Fac Combat Hostiles Destroyed . | . . . . . . . . . . . Classes Destroyed . | . . . . . . . . . . . Best Kill Streak . | . . . . . . . . . . . Combat Bots Only . | . . . . . . . . . . . Max Kills in Single Turn . | . . . . . . . . . . . Gunslinging . | . . . . . . . . . . . Exploded . | . . . . . . . . . . . Melee . | . . . . . . . . . . . Uniques/NPCs Destroyed . | . . . . . . . . . . . Combat | -11 -10 -10 -10 -9 -8 -7 -7 -6 -6 -6 -------- Run | Jun Mat Min Exi Min Mat Fac DSF Fac Was Fac Damage Taken 1905 | 1 . 70 . 616 115 . 296 644 . 163 Core 1905 | 1 . 70 . 616 115 . 296 644 . 163 Absorbed by Shields 63 | . . . . . . . 63 . . . Core Remaining (%) 65 | 99 . . . 14 85 . 63 . . . Volleys Fired . | . . . . . . . . . . . Largest . | . . . . . . . . . . . Hottest . | . . . . . . . . . . . Shots Fired . | . . . . . . . . . . . Gun . | . . . . . . . . . . . Cannon . | . . . . . . . . . . . Launcher . | . . . . . . . . . . . Special . | . . . . . . . . . . . Kinetic . | . . . . . . . . . . . Thermal . | . . . . . . . . . . . Explosive . | . . . . . . . . . . . Electromagnetic . | . . . . . . . . . . . Robot Hit Streak . | . . . . . . . . . . . Robot Miss Streak . | . . . . . . . . . . . Penetration Max . | . . . . . . . . . . . Secondary Targets . | . . . . . . . . . . . Shots Hit Robots . | . . . . . . . . . . . Core Hits 4 | . . . . 4 . . . . . . Critical Kills . | . . . . . . . . . . . Critical Parts Destroyed . | . . . . . . . . . . . Critical Strikes . | . . . . . . . . . . . Melee Attacks . | . . . . . . . . . . . Impact . | . . . . . . . . . . . Slashing . | . . . . . . . . . . . Piercing . | . . . . . . . . . . . Sneak Attacks . | . . . . . . . . . . . Combat Hostiles . | . . . . . . . . . . . Follow-up Attacks . | . . . . . . . . . . . Damage Inflicted 58 | 2 . . . 56 . . . . . . Guns . | . . . . . . . . . . . Cannons . | . . . . . . . . . . . Explosions . | . . . . . . . . . . . Melee . | . . . . . . . . . . . Ramming 58 | 2 . . . 56 . . . . . . Kinetic . | . . . . . . . . . . . Thermal . | . . . . . . . . . . . Explosive . | . . . . . . . . . . . Electromagnetic . | . . . . . . . . . . . Impact . | . . . . . . . . . . . Slashing . | . . . . . . . . . . . Piercing . | . . . . . . . . . . . Highest Corruption 9 | . . . . 1 . . . 1 8 9 Average Corruption 4 | . . . . 1 . . . 1 5 8 Corruption Purged . | . . . . . . . . . . . Corruption Blocked . | . . . . . . . . . . . Effects 6 | . . . . . . . . 1 1 4 Message Errors 1 | . . . . . . . . . . 1 Matter Fused 1 | . . . . . . . . . . 1 Heat Flow Errors 2 | . . . . . . . . 1 1 . Data Loss (minor) 1 | . . . . . . . . . . 1 Data Loss (major) 1 | . . . . . . . . . . 1 Overload Shots . | . . . . . . . . . . . Overflow Damage . | . . . . . . . . . . . Projectiles . | . . . . . . . . . . . Explosions . | . . . . . . . . . . . Melee . | . . . . . . . . . . . Knockbacks . | . . . . . . . . . . . Impact . | . . . . . . . . . . . Kinetic . | . . . . . . . . . . . Secondary . | . . . . . . . . . . . Self-Inflicted Damage 26 | 1 . . . 25 . . . . . . Shots . | . . . . . . . . . . . Rammed 16 | 1 . . . 15 . . . . . . Targets Rammed 16 | 1 . . . 15 . . . . . . Kicked . | . . . . . . . . . . . Crushed . | . . . . . . . . . . . Highest Temperature 240 | . . . . . . . . 240 175 . Average Temperature 168 | . . . . . . . . 210 135 . Received Heat Transfer 123 | . . . . 9 54 . . 33 . 27 Siege Activations . | . . . . . . . . . . . Robots Corrupted . | . . . . . . . . . . . Combat Hostiles . | . . . . . . . . . . . Parts Fried . | . . . . . . . . . . . Impact Corruptions . | . . . . . . . . . . . Robots Melted . | . . . . . . . . . . . Combat Hostiles . | . . . . . . . . . . . Parts Melted . | . . . . . . . . . . . Heat Transferred . | . . . . . . . . . . . Parts Sabotaged . | . . . . . . . . . . . Parts Stolen . | . . . . . . . . . . . Parts Stripped . | . . . . . . . . . . . Power Chain Reactions . | . . . . . . . . . . . Missiles Intercepted . | . . . . . . . . . . . Alert | -11 -10 -10 -10 -9 -8 -7 -7 -6 -6 -6 ------- Run | Jun Mat Min Exi Min Mat Fac DSF Fac Was Fac Peak Influence 143 | . . 15 . 30 80 36 25 112 69 143 Initial 48 | . . . . . 11 36 25 12 39 48 Average 39 | . . 14 . 21 36 36 25 26 61 89 Maximum Alert Level . | . . . . . . . . . . . Low Security (%) 100 | 100 100 100 . 100 100 100 100 100 100 100 Level 1 . | . . . . . . . . . . . Level 2 . | . . . . . . . . . . . Level 3 . | . . . . . . . . . . . Level 4 . | . . . . . . . . . . . Level 5 . | . . . . . . . . . . . High Security . | . . . . . . . . . . . Max Security . | . . . . . . . . . . . Squads Dispatched 5 | . . . . . 1 . . 3 . 1 Investigation 4 | . . . . . 1 . . 3 . . Extermination . | . . . . . . . . . . . Reinforcement 1 | . . . . . . . . . . 1 Assault . | . . . . . . . . . . . Garrison . | . . . . . . . . . . . Intercept . | . . . . . . . . . . . Searches Triggered . | . . . . . . . . . . . Construction Impeded . | . . . . . . . . . . . Haulers Reinforced . | . . . . . . . . . . . Active Scanning Responses . | . . . . . . . . . . . Cargo Convoy Interrupts . | . . . . . . . . . . . Stealth | -11 -10 -10 -10 -9 -8 -7 -7 -6 -6 -6 --------- Run | Jun Mat Min Exi Min Mat Fac DSF Fac Was Fac Distress Signals 1 | . . . . . . . . . . 1 Communications Jammed . | . . . . . . . . . . . Distress Signals . | . . . . . . . . . . . Times Spotted 57 | . . 3 . 20 6 . 2 11 6 9 Peak Tracking Total 14 | . . 3 . 14 6 . 2 8 6 6 Tactical Retreats 8 | . . . . 4 1 . . 2 . 1 Traps | -11 -10 -10 -10 -9 -8 -7 -7 -6 -6 -6 ------- Run | Jun Mat Min Exi Min Mat Fac DSF Fac Was Fac Traps Triggered 17 | . . . . . 3 . 3 5 . 6 Indirectly . | . . . . . . . . . . . Trap Hack Attempts . | . . . . . . . . . . . Triggered . | . . . . . . . . . . . Disarmed . | . . . . . . . . . . . Reprogrammed . | . . . . . . . . . . . Reused . | . . . . . . . . . . . Traps Extracted . | . . . . . . . . . . . Installed . | . . . . . . . . . . . Triggered 1 | . . . . . . . . 1 . . Machines | -11 -10 -10 -10 -9 -8 -7 -7 -6 -6 -6 ---------- Run | Jun Mat Min Exi Min Mat Fac DSF Fac Was Fac Machines Disabled . | . . . . . . . . . . . Max in Single Turn . | . . . . . . . . . . . Machines Repaired . | . . . . . . . . . . . Machines Sabotaged . | . . . . . . . . . . . Overloaded Fab Kills . | . . . . . . . . . . . Hacking | -11 -10 -10 -10 -9 -8 -7 -7 -6 -6 -6 --------- Run | Jun Mat Min Exi Min Mat Fac DSF Fac Was Fac Machines Accessed 8 | . . 1 . 1 2 1 . 2 . 1 Terminals 5 | . . . . . 2 1 . 1 . 1 Fabricators . | . . . . . . . . . . . Repair Stations . | . . . . . . . . . . . Recycling Units . | . . . . . . . . . . . Scanalyzers . | . . . . . . . . . . . Garrison Access 1 | . . . . . . . . 1 . . Total Hacks 17 | . . 1 . 1 8 1 . 5 . 1 Successful 8 | . . 1 . 1 4 1 . . . 1 Failed 9 | . . . . . 4 . . 5 . . Catastrophic 2 | . . . . . . . . 2 . . Database Lockouts . | . . . . . . . . . . . Manual . | . . . . . . . . . . . Terminals 13 | . . . . . 8 1 . 3 . 1 Fabricators . | . . . . . . . . . . . Repair Stations . | . . . . . . . . . . . Recycling Units . | . . . . . . . . . . . Scanalyzers . | . . . . . . . . . . . Garrison Access 2 | . . . . . . . . 2 . . Terminal Hacks 8 | . . 1 . 1 4 1 . . . 1 Robot Analysis 1 | . . . . . 1 . . . . . Open Door 2 | . . 1 . 1 . . . . . . Open DSF 2 | . . . . . . 1 . . . 1 Branch Access Points 1 | . . . . . 1 . . . . . Surveillance Status 1 | . . . . . 1 . . . . . Zone Layout 1 | . . . . . 1 . . . . . Fabricator Hacks . | . . . . . . . . . . . Repair Station Hacks . | . . . . . . . . . . . Recycling Unit Hacks . | . . . . . . . . . . . Scanalyzer . | . . . . . . . . . . . Garrison Access Hacks . | . . . . . . . . . . . Unauthorized Hacks . | . . . . . . . . . . . Terminals . | . . . . . . . . . . . Fabricators . | . . . . . . . . . . . Repair Stations . | . . . . . . . . . . . Recycling Units . | . . . . . . . . . . . Scanalyzers . | . . . . . . . . . . . Garrison Access . | . . . . . . . . . . . Data Cores Recovered . | . . . . . . . . . . . Used . | . . . . . . . . . . . Hacking Detections 3 | . . . . . 1 . . 2 . . Full Trace Events 3 | . . . . . 1 . . 2 . . Feedback Events . | . . . . . . . . . . . Feedback Blocked . | . . . . . . . . . . . Robot Schematics Acquired . | . . . . . . . . . . . Robots Built . | . . . . . . . . . . . Authchips . | . . . . . . . . . . . Time . | . . . . . . . . . . . Total Robot Build Rating . | . . . . . . . . . . . Part Schematics Acquired . | . . . . . . . . . . . Parts Built . | . . . . . . . . . . . Authchips . | . . . . . . . . . . . Time . | . . . . . . . . . . . Total Part Build Rating . | . . . . . . . . . . . Parts Repaired . | . . . . . . . . . . . Time . | . . . . . . . . . . . Parts Recycled . | . . . . . . . . . . . Recycled Matter . | . . . . . . . . . . . Retrieved Matter . | . . . . . . . . . . . Retrieved Components . | . . . . . . . . . . . Parts Scanalyzed . | . . . . . . . . . . . Part Schematics Acquired . | . . . . . . . . . . . Parts Damaged . | . . . . . . . . . . . Bothacking | -11 -10 -10 -10 -9 -8 -7 -7 -6 -6 -6 ------------ Run | Jun Mat Min Exi Min Mat Fac DSF Fac Was Fac Used RIF Installer . | . . . . . . . . . . . Robots Hacked . | . . . . . . . . . . . Non-combat . | . . . . . . . . . . . Combat . | . . . . . . . . . . . Robot Hacks Applied . | . . . . . . . . . . . Relay Couplers Released . | . . . . . . . . . . . Fabnet Peak Effective % . | . . . . . . . . . . . Robots Rewired . | . . . . . . . . . . . Allies Hacked . | . . . . . . . . . . . Hacks Repelled . | . . . . . . . . . . . Allies | -11 -10 -10 -10 -9 -8 -7 -7 -6 -6 -6 -------- Run | Jun Mat Min Exi Min Mat Fac DSF Fac Was Fac Total Allies . | . . . . . . . . . . . Largest Group . | . . . . . . . . . . . Highest-Rated Group . | . . . . . . . . . . . Highest-Rated Ally . | . . . . . . . . . . . Total Orders . | . . . . . . . . . . . Ally Attacks . | . . . . . . . . . . . Total Damage . | . . . . . . . . . . . Kills . | . . . . . . . . . . . Allies Corrupted . | . . . . . . . . . . . Allies Melted . | . . . . . . . . . . . Intel | -11 -10 -10 -10 -9 -8 -7 -7 -6 -6 -6 ------- Run | Jun Mat Min Exi Min Mat Fac DSF Fac Was Fac Robot Analysis Total 1 | . . . . . 1 . . . . . Derelict Logs Recovered 3 | . . 1 . 2 . . . . . . Drone Launches . | . . . . . . . . . . . Drone Recoveries . | . . . . . . . . . . . Exploration | -11 -10 -10 -10 -9 -8 -7 -7 -6 -6 -6 ------------- Run | Jun Mat Min Exi Min Mat Fac DSF Fac Was Fac Turns Passed 730 | 9 13 35 82 141 54 14 56 162 43 121 Spaces Moved 1325 | 17 26 66 164 246 108 28 71 309 86 204 Core 1325 | 17 26 66 164 246 108 28 71 309 86 204 Treads . | . . . . . . . . . . . Legs . | . . . . . . . . . . . Wheels . | . . . . . . . . . . . Hover . | . . . . . . . . . . . Flight . | . . . . . . . . . . . Fastest Speed 50 | 50 50 50 50 50 50 50 50 50 50 50 Average Speed 50 | 50 50 50 50 50 50 50 50 50 50 50 Slowest Speed 50 | 50 50 50 50 50 50 50 50 50 50 50 Overloaded Moves . | . . . . . . . . . . . Propulsion Burnouts . | . . . . . . . . . . . Robots Hopped . | . . . . . . . . . . . Cave-ins Triggered . | . . . . . . . . . . . Exploration Rate (%) 29 | 4 8 23 36 69 21 1 70 5 75 12 Regions Visited 10 Branch Regions 3 Pre-discovered Areas 2 | . . 1 . 1 . . . . . . Known Exits Taken 1 | . . . . . . 1 . . . . Unknown Exits Taken 6 | 1 1 1 1 1 1 . . . . . Scrap Searched 1 | . . . . 1 . . . . . . Spaces Dug . | . . . . . . . . . . . Terrain Destroyed . | . . . . . . . . . . . Melee . | . . . . . . . . . . . Projectile . | . . . . . . . . . . . AOE . | . . . . . . . . . . . Terrain Rammed . | . . . . . . . . . . . Walls Destroyed . | . . . . . . . . . . . Machines Disabled . | . . . . . . . . . . . Actions | -11 -10 -10 -10 -9 -8 -7 -7 -6 -6 -6 --------- Run | Jun Mat Min Exi Min Mat Fac DSF Fac Was Fac Total 1383 | 17 25 67 163 263 107 27 90 316 85 223 Wait 16 | . . 2 . 3 . . . 7 . 4 Move 1316 | 16 25 65 163 245 107 27 70 309 85 204 Hop . | . . . . . . . . . . . Pick Up . | . . . . . . . . . . . Fast Attach . | . . . . . . . . . . . Attach . | . . . . . . . . . . . Detach . | . . . . . . . . . . . Swap . | . . . . . . . . . . . Drop . | . . . . . . . . . . . Fire . | . . . . . . . . . . . Melee . | . . . . . . . . . . . Ram 16 | 1 . . . 15 . . . . . . Kick . | . . . . . . . . . . . Crush . | . . . . . . . . . . . Escape Stasis 35 | . . . . . . . 20 . . 15 Rewire . | . . . . . . . . . . . Trap . | . . . . . . . . . . . Miscellaneous . | . . . . . . . . . . . Route ------- -11/Junkyard -10/Materials -10/Mines -10/Exiles -9/Mines -8/Materials -7/Factory -7/DSF -6/Factory -6/Waste -6/Factory History --------- Turn | Location | Event 5 | -11/Junkyard | Discovered new exit (range 12) 10 | -11/Junkyard | Entered Materials 20 | -10/Materials | Discovered new exit (range 7) 23 | -10/Materials | Entered Mines 31 | -10/Mines | Found the Drone Emporium 32 | -10/Mines | Learned location of Zion (-6) 56 | -10/Mines | Deemed a non-threat by the Exiles lab entrance 56 | -10/Mines | Discovered new exit (range 5) 58 | -10/Mines | Entered Exiles 71 | -10/Exiles | Met 8R-AWN 79 | -10/Exiles | Met EX-HEX 93 | -10/Exiles | Met EX-BIN 100 | -10/Exiles | Aligned with FarCom system 100 | -10/Exiles | Given EX-Vault access code 132 | -10/Exiles | Discovered new exit (range 15) 140 | -10/Exiles | Entered Mines 143 | -9/Mines | Met a Derelict who couldn't figure out how to use a Trap Extractor 149 | -9/Mines | Assembled infested the area 194 | -9/Mines | Core integrity fell below 50% 222 | -9/Mines | Core integrity fell below 20% 271 | -9/Mines | Learned Materials garrison access intel 276 | -9/Mines | Discovered new exit (range 11) 281 | -9/Mines | Entered Materials 281 | -8/Materials | Devolved, losing 2 slots: Utility x-1, Weapon x-1 282 | -8/Materials | Loaded intel: 1 garrison access location 305 | -8/Materials | Build established: Mutant 328 | -8/Materials | Discovered new exit (range 16) 335 | -8/Materials | Entered Factory 335 | -7/Factory | Devolved, losing 1 slot: Propulsion x-1 349 | -7/Factory | Identified exit to DSF 349 | -7/Factory | Entered DSF 399 | -7/DSF | Additional patrols routed to DSF 399 | -7/DSF | Discovered new exit (range 11) 405 | -7/DSF | Entered Factory 405 | -6/Factory | Devolved, losing 1 slot: Utility x-1 538 | -6/Factory | Core integrity fell below 50% 548 | -6/Factory | Core integrity fell below 20% 567 | -6/Factory | Sucked down chute 567 | -6/Factory | Entered Waste 571 | -6/Waste | Spotted C-40 Crusher 580 | -6/Waste | Spotted C-40 Crusher 582 | -6/Waste | EMP discharged 596 | -6/Waste | Spotted C-40 Crusher 597 | -6/Waste | Spotted C-40 Crusher 601 | -6/Waste | Spotted C-40 Crusher 602 | -6/Waste | Spotted C-40 Crusher 606 | -6/Waste | Discovered new exit (range 10) 610 | -6/Waste | Entered Factory 668 | -6/Factory | Spotted B-75 Beast 731 | -6/Factory | Destroyed by S-27 Virus with Autogun Last Messages --------------- 00713_ Field strength at 70. 00714_ Field strength at 64. 00715_ Field strength at 58. 00716_ Field strength at 52. 00717_ Field strength at 46. 00718_ Field strength at 40. 00719_ Field strength at 34. 00720_ Field strength at 28. 00721_ Field strength at 22. 00722_ Field strength at 16. 00723_ Field strength at 10. 00724_ Field strength at 4. 00725_ Stasis field depleted. 00729_ Triggered Blade Trap. 00729_ Massive razor-sharp blades shoot up from within the floor. 00729_ Triggered Blade Trap. 00729_ Massive razor-sharp blades shoot up from within the floor. 00730_ Triggered Ambush Trap. 00730_ L-41 Fighter emerges from a hatch in the floor. 00730_ S-27 Virus emerges from a hatch in the floor. Map ----- +----------------------------------------------------+ | | | | | ?????????????????????????????????????? | | ?????????????????????????????????????? | | ?????????????????????????????????????? | | ?????????????????????????????????????? | | ?????????????????????????????????????? | | ?????????????????????????????????????? | | ?????????????????????????????????????? | | ?????????????????????????????????????? | | ?????????????????????????????????????? | | ?????????????????????????????????????? | | ?????????????????????????????????????? | | ?????????????????????????????????????? | | ?????????????????????????????????????? | | ?????????????????????????????????????? | | ?????????????????????????????????????? | | ?????????????????????????????????????? | | ?????????????????????????????????????? | | ?????????????????????????????????????? | | ????????????#+#??+#??????????????????? | | ????????????# #?? #??????????????????? | | ????????????# #?# #??????????????????? | | ????????????# #?# #??????????????????? | | ????????????# ### ##?????????? ??????? | | ????????????#@ ######+### ?????? | | ????????????# ??????? | | ????????????# s ?????? | | ????????????# """" ???????? | | ????????????# ""F" ###########+ | | ????????????# #### | | ????????????#l #??# """"""""" | | ????????????# """ #??# ?? | | ????????????# """ ##??# """"""???? | | ????????????# """ #???? ?????? | | ????????????# #######+######## | | ????????????# t""" # # | | ????????????+ """ + # | | ????????????# """ # # | | ????????????# # # | | ??????????? """ ######### #? # | | ??????????? """ ######### #? # | | ?????????? l """ # ## #?? # | | ???????????? # ## #?? # | | ????????????? """ # ! + ###### | | ???????????# """ # = ## #T ### | | ???????????# """ # ## | | ???????????? # ## | | ?????????????? """ ##+###### | | ???????????? ? """ | +----------------------------------------------------+ Best States ------------- Heat Dissipation 20 Energy Generation 5 Energy Capacity 100 Matter Stores 300 Matter Capacity 300 Sight Range 16 Terrain Scan Density 10 Evasion (%) 50 Item Schematics ----------------- None Robot Schematics ------------------ None Fabricated ------------ Nothing Alien Tech Used ----------------- None Achievements -------------- None Challenges ------------ Devolution Fragile Parts No Salvage Pure Core Scavenger Simple Hacker Trapped Game ------ Seed CompositeMyomerPenetrator Manual? 0 Play Time 00:09:45 Cumulative 279.2 hours Start 2023.03.26 @ 02:35:17 End 2023.03.26 @ 02:43:49 Sessions 1 Manual Loads 0 Difficulty Rogue Special Mode None Game No. 254 Rogue 237 Adventurer 1 Explorer 16 Win Type - Total 16 Types 13/1/0/2/0/0/0/0/0 Lore% 74 Gallery% 80 Achievement% 72 Wizard Run 0 Options --------- ASCII 1 Keyboard 1 Movement Numpad Keybinds 1 Fullscreen 1 Font 18/X11 Map View 76x50 Tactical HUD 1 Map Filters NONE Filters NONE Steam 1 RUN: f5cf3d43-884f-4670-8928-829a16be683e